bitfinex-derivatives/quotes_SOLF0:USTF0_20260302
["timestamp","ask_amount","ask_price","bid_price","bid_amount"]
[1772459326180,3.08470569,83.18,83.142,27.34307919]
[1772459326379,3.08470569,83.17,83.135,10.828]
[1772459327277,3.08470569,83.18,83.136,27.34307919]
[1772459327486,3.08470569,83.19,83.136,27.34307919]
[1772459329090,10.82,83.196,83.156,25.50853135]
[1772459329285,3.08470569,83.19,83.156,25.50853135]
[1772459330289,13.90570569,83.19,83.156,25.50853135]
[1772459332589,10.821,83.19,83.156,25.50853135]
[1772459333390,10.823,83.177,83.142,25.50853135]
[1772459333593,18.38116022,83.202,83.142,25.50853135]
[1772459335188,18.38116022,83.202,83.143,10.827]
[1772459335189,10.822,83.183,83.143,10.827]
[1772459335689,18.07309216,83.219,83.144,25.50853135]
[1772459335891,10.82,83.197,83.161,25.50853135]
[1772459336091,18.07309216,83.217,83.161,25.50853135]
[1772459336294,27.57582164,83.217,83.161,25.50853135]
[1772459336487,27.57582164,83.217,83.163,25.50853135]
[1772459336488,10.819,83.204,83.163,25.50853135]
[1772459336683,18.07309216,83.217,83.163,25.50853135]
[1772459337286,17.76847739,83.232,83.175,25.50853135]
[1772459337994,17.76847739,83.232,83.155,14.81351768]
[1772459337995,10.818,83.218,83.177,25.50853135]
[1772459338893,17.11078392,83.23,83.177,25.50853135]
[1772459340492,17.11078392,83.23,83.13,7.71192432]
[1772459340493,17.00773238,83.219,83.162,25.50853135]
[1772459340790,42.18048112,83.236,83.11,7.71192432]
[1772459340791,17.01482953,83.187,83.139,25.50853135]
[1772459341595,7.71192432,83.2,83.139,25.50853135]
[1772459341792,17.49138424,83.199,83.139,25.50853135]
[1772459342894,10.822,83.182,83.142,25.50853135]
[1772459343095,17.35070016,83.197,83.142,25.50853135]
[1772459343493,17.20673333,83.184,83.128,25.50853135]
[1772459344195,10.825,83.163,83.128,25.50853135]
[1772459344789,10.824,83.17,83.128,25.50853135]
[1772459344992,17.11507357,83.198,83.128,25.50853135]
[1772459345495,10.822,83.18,83.137,10.828]
[1772459345688,17.05859118,83.196,83.138,25.50853135]
[1772459347096,10.824,83.168,83.138,25.50853135]
[1772459347593,10.824,83.168,83.115,25.50853135]
[1772459348289,10.824,83.168,83.124,25.50853135]
[1772459349290,16.39719162,83.169,83.098,14.81351768]
[1772459350198,10.826,83.153,83.107,10.832]
[1772459351201,10.826,83.153,83.108,25.50853135]
[1772459351993,25.7246728,83.154,83.108,25.50853135]
[1772459352790,25.7246728,83.168,83.108,25.50853135]
[1772459354299,10.826,83.154,83.108,25.50853135]
[1772459354500,3.08800396,83.15,83.108,25.50853135]
[1772459355299,10.827,83.148,83.108,25.50853135]
[1772459356200,3.08800396,83.15,83.11,22.58139076]
[1772459357302,10.824,83.164,83.11,22.58139076]
[1772459357602,11.14092535,83.194,83.07,22.40751971]
[1772459357603,3.08800396,83.18,83.131,22.96169484]
[1772459358303,3.08800396,83.19,83.137,22.96169484]
[1772459358606,24.04614487,83.198,83.141,22.96169484]
[1772459358803,3.08800396,83.19,83.141,22.96169484]
[1772459359207,13.90900396,83.19,83.142,22.96169484]
[1772459359606,3.08800396,83.19,83.142,22.96169484]
[1772459359904,13.91000396,83.18,83.142,22.96169484]
[1772459360109,3.08800396,83.18,83.142,22.96169484]
[1772459360310,3.08800396,83.19,83.142,22.96169484]
[1772459360714,10.822,83.179,83.142,22.96169484]
[1772459360911,3.08800396,83.19,83.142,22.96169484]
[1772459362309,3.08800396,83.19,83.144,22.96169484]
[1772459363307,3.08800396,83.19,83.146,10.827]
[1772459363506,3.08800396,83.19,83.147,22.96169484]
[1772459364612,3.08800396,83.18,83.131,22.96169484]
[1772459365116,3.08800396,83.18,83.138,22.96169484]
[1772459365915,10.822,83.179,83.141,22.96169484]
[1772459366216,3.08800396,83.17,83.127,22.96169484]
[1772459367214,3.08800396,83.17,83.134,22.96169484]
[1772459367416,10.823,83.179,83.134,22.96169484]
[1772459368218,10.823,83.179,83.137,22.96169484]
[1772459368708,24.04614487,83.178,83.115,14.81351768]
[1772459368919,3.08800396,83.13,83.107,22.96169484]
[1772459369213,3.08800396,83.16,83.111,22.96169484]
[1772459369515,10.823,83.174,83.111,22.96169484]
[1772459369712,3.08800396,83.17,83.111,22.96169484]
[1772459369908,3.08800396,83.16,83.111,22.96169484]
[1772459370108,3.08800396,83.15,83.111,22.96169484]
[1772459370317,3.08800396,83.14,83.111,22.96169484]
[1772459375820,3.08800396,83.12,83.066,22.96169484]
[1772459376021,3.08800396,83.11,83.066,22.96169484]
[1772459376215,3.08800396,83.11,83.068,22.96169484]
[1772459376414,3.08800396,83.12,83.068,22.96169484]
[1772459376721,3.08800396,83.13,83.071,22.96169484]
[1772459376921,3.08800396,83.12,83.071,22.96169484]
[1772459377422,10.83,83.119,83.071,22.96169484]
[1772459377621,3.08800396,83.11,83.071,22.96169484]
[1772459378017,10.83,83.119,83.072,10.836]
[1772459378223,10.83,83.119,83.035,21.683]
[1772459378224,10.83,83.119,83.073,22.96169484]
[1772459378518,3.08800396,83.12,83.076,22.96169484]
[1772459379114,10.828,83.138,83.093,22.96169484]
[1772459380323,10.828,83.138,83.098,22.96169484]
[1772459381723,3.08800396,83.13,83.098,22.96169484]
[1772459382725,3.08918151,83.13,83.098,22.96169484]
[1772459382925,3.08918151,83.14,83.098,22.96169484]
[1772459383323,3.08918151,83.14,83.1,22.96169484]
[1772459383625,10.827,83.141,83.1,22.96169484]
[1772459384622,10.827,83.141,83.102,22.96169484]
[1772459384820,3.08918151,83.14,83.102,22.96169484]
[1772459385520,3.08918151,83.16,83.102,22.96169484]
[1772459385717,3.08918151,83.17,83.121,22.96169484]
[1772459386119,10.824,83.169,83.128,10.829]
[1772459386525,10.824,83.169,83.128,33.79069484]
[1772459386720,10.824,83.169,83.129,22.96169484]
[1772459387322,10.826,83.151,83.113,22.56872559]
[1772459387527,3.08918151,83.15,83.113,22.56872559]
[1772459387827,3.08918151,83.16,83.113,22.56872559]
[1772459388027,3.08918151,83.15,83.113,22.56872559]
[1772459388321,3.08918151,83.15,83.091,22.56872559]
[1772459388526,3.08918151,83.14,83.091,22.56872559]
[1772459388730,3.08918151,83.15,83.091,22.56872559]
[1772459390233,10.827,83.142,83.101,22.56872559]
[1772459390538,3.08918151,83.12,83.077,22.56872559]
[1772459391137,3.08918151,83.11,83.077,22.56872559]
[1772459392241,3.08918151,83.13,83.077,22.56872559]
[1772459393240,10.829,83.129,83.082,10.835]
[1772459393539,10.829,83.129,83.083,22.56872559]
[1772459394040,10.83,83.122,83.083,22.56872559]
[1772459394843,3.08918151,83.12,83.083,22.56872559]
[1772459396143,3.08918151,83.14,83.083,22.56872559]
[1772459396342,3.08918151,83.13,83.083,22.56872559]
[1772459396944,3.08918151,83.13,83.091,10.834]
[1772459397744,3.08918151,83.13,83.097,10.833]
[1772459398144,3.08918151,83.13,83.092,22.56872559]
[1772459398345,3.08918151,83.12,83.078,22.56872559]
[1772459398945,3.08918151,83.12,83.081,10.835]
[1772459399145,3.08918151,83.12,83.082,22.56872559]
[1772459400043,10.831,83.117,83.077,10.836]
[1772459400442,10.831,83.117,83.077,33.40472559]
[1772459400644,10.831,83.117,83.078,22.56872559]
[1772459400840,10.831,83.117,83.05,21.679]
[1772459400841,3.08918151,83.15,83.093,22.56872559]
[1772459401144,3.08918151,83.14,83.093,22.56872559]
[1772459401443,13.91518151,83.15,83.103,22.56872559]
[1772459401651,3.08918151,83.18,83.121,22.56872559]
[1772459402042,3.08918151,83.17,83.126,10.829]
[1772459402236,22.09208913,83.159,83.101,22.56872559]
[1772459402446,3.08918151,83.14,83.101,22.56872559]
[1772459402747,3.08918151,83.15,83.101,22.56872559]
[1772459403144,3.08918151,83.14,83.101,33.40172559]
[1772459403338,3.08918151,83.14,83.102,22.56872559]
[1772459403541,3.08918151,83.15,83.102,22.56872559]
[1772459404549,25.18127064,83.14,83.081,22.56872559]
[1772459404738,3.08918151,83.13,83.081,22.56872559]
[1772459404938,25.18127064,83.14,83.081,22.56872559]
[1772459405137,25.18127064,83.14,83.093,22.56872559]
[1772459406247,10.828,83.137,83.096,10.833]
[1772459407346,10.828,83.137,83.065,14.9097544]
[1772459407347,3.08918151,83.16,83.1,3.08918151]
[1772459407548,3.08918151,83.16,83.101,22.56872559]
[1772459407849,10.825,83.16,83.115,22.56872559]
[1772459408545,22.09208913,83.17,83.115,22.56872559]
[1772459408846,3.08918151,83.15,83.115,22.56872559]
[1772459409347,22.09208913,83.139,83.082,14.9097544]
[1772459409552,22.09208913,83.139,83.081,22.56872559]
[1772459410150,3.08918151,83.13,83.081,22.56872559]
[1772459410351,22.09208913,83.139,83.081,22.56872559]
[1772459410853,10.827,83.145,83.102,22.56872559]
[1772459411149,3.08918151,83.14,83.102,22.56872559]
[1772459411351,10.828,83.139,83.102,22.56872559]
[1772459411552,3.08918151,83.13,83.096,10.833]
[1772459411947,3.08918151,83.13,83.088,33.40272559]
[1772459412154,3.08918151,83.13,83.088,22.56872559]
[1772459412344,3.08918151,83.13,83.044,21.681]
[1772459412345,3.08918151,83.15,83.091,22.56872559]
[1772459412545,3.08918151,83.16,83.101,22.56872559]
[1772459412748,3.08918151,83.17,83.121,22.56872559]
[1772459412950,3.08918151,83.15,83.106,22.56872559]
[1772459413146,3.08918151,83.15,83.113,10.831]
[1772459413352,22.09208913,83.157,83.113,10.831]
[1772459413553,3.08918151,83.15,83.106,22.56872559]
[1772459413949,3.08918151,83.15,83.091,14.9097544]
[1772459413950,3.08918151,83.15,83.108,32.41648022]
[1772459414458,3.08918151,83.14,83.108,21.58448022]
[1772459414658,3.08918151,83.13,83.091,21.58448022]
[1772459414855,24.48848728,83.14,83.091,21.58448022]
[1772459415056,10.829,83.129,83.091,21.58448022]
[1772459415456,3.08918151,83.13,83.091,21.58448022]
[1772459415760,10.829,83.129,83.091,32.41848022]
[1772459416454,10.83,83.122,83.084,10.835]
[1772459418451,3.08918151,83.13,83.084,10.835]
[1772459418654,3.08918151,83.13,83.09,10.834]
[1772459418954,3.08918151,83.12,83.08,21.24903861]
[1772459420057,3.08918151,83.11,83.068,10.837]
[1772459421256,10.832,83.108,83.068,10.837]
[1772459421556,10.832,83.108,83.065,21.24903861]
[1772459421763,3.08918151,83.1,83.065,21.24903861]
[1772459421961,13.92218151,83.1,83.052,21.24903861]
[1772459422864,10.832,83.108,83.054,21.24903861]
[1772459423066,20.58052321,83.109,83.054,21.24903861]
[1772459423765,13.92218151,83.1,83.054,21.24903861]
[1772459423965,20.58052321,83.109,83.054,21.24903861]
[1772459424462,20.58052321,83.152,83.081,21.24903861]
[1772459424769,3.08918151,83.15,83.091,21.24903861]
[1772459425165,3.08918151,83.15,83.099,21.24903861]
[1772459425361,20.58052321,83.139,83.084,21.24903861]
[1772459425559,3.08918151,83.14,83.084,21.24903861]
[1772459425965,20.58052321,83.169,83.1,24.33822012]
[1772459426166,3.08918151,83.16,83.1,24.33822012]
[1772459426469,3.08918151,83.16,83.115,21.24903861]
[1772459427071,3.08918151,83.15,83.115,21.24903861]
[1772459427272,20.58052321,83.169,83.115,21.24903861]
[1772459427473,3.08918151,83.16,83.115,21.24903861]
[1772459427868,10.825,83.159,83.115,21.24903861]
[1772459428365,10.825,83.159,83.1,3.08918151]
[1772459428366,3.08918151,83.15,83.1,21.24903861]
[1772459428569,20.58052321,83.159,83.1,21.24903861]
[1772459429371,20.58052321,83.159,83.103,21.24903861]
[1772459430069,20.58052321,83.159,83.087,21.24903861]
[1772459430274,7.7196638,83.16,83.087,21.24903861]
[1772459430275,10.829,83.132,83.088,10.834]
[1772459431073,10.828,83.14,83.096,21.24903861]
[1772459431876,20.58052321,83.159,83.098,21.24903861]
[1772459432069,20.58052321,83.158,83.098,21.24903861]
[1772459432270,20.58052321,83.157,83.098,21.24903861]
[1772459432466,10.83,83.125,83.098,21.24903861]
[1772459432670,20.58052321,83.142,83.068,21.24903861]
[1772459434377,10.829,83.126,83.082,10.835]
[1772459434573,10.829,83.126,83.083,21.24903861]
[1772459435070,7.7196638,83.16,83.066,14.9097544]
[1772459435071,20.58052321,83.125,83.068,21.24903861]
[1772459435274,20.58052321,83.107,83.059,21.24903861]
[1772459435466,20.58052321,83.138,83.059,21.24903861]
[1772459435668,10.831,83.117,83.075,21.24903861]
[1772459436475,10.832,83.11,83.075,21.24903861]
[1772459436774,20.58052321,83.125,83.075,21.24903861]
[1772459436974,10.832,83.104,83.06,10.838]
[1772459437977,10.832,83.104,83.06,32.08703861]
[1772459438678,10.833,83.098,83.06,32.08703861]
[1772459439573,20.58052321,83.118,83.063,21.24903861]
[1772459440576,10.832,83.106,83.063,21.24903861]
[1772459441277,10.831,83.113,83.067,21.24903861]
[1772459441582,20.58052321,83.118,83.047,21.24903861]
[1772459441983,20.58052321,83.088,83.047,21.24903861]
[1772459442379,20.58052321,83.088,83.001,29.82349823]
[1772459442380,20.58052321,83.05,83.002,21.24903861]
[1772459443176,20.58052321,83.05,82.994,10.847]
[1772459443385,20.58052321,83.057,82.962,21.24903861]
[1772459443580,20.58052321,83.057,82.97,7.7196638]
[1772459443878,10.79992677,83.059,83.003,21.24903861]
[1772459444080,20.58052321,83.07,83.003,21.24903861]
[1772459444277,20.58052321,83.069,83.003,21.24903861]
[1772459444485,10.838,83.063,83.012,32.09303861]
[1772459444780,20.58052321,83.085,83.012,21.24903861]
[1772459444978,10.77655029,83.089,83.027,21.24903861]
[1772459445175,20.58052321,83.101,83.027,21.24903861]
[1772459445480,20.58052321,83.085,83.027,21.24903861]
[1772459445979,10.836,83.073,83.027,21.24903861]
[1772459446886,20.58052321,83.083,83.009,21.24903861]
[1772459447073,7.73637385,83.09,83.009,21.24903861]
[1772459447074,20.58052321,83.082,83.009,21.24903861]
[1772459448288,10.839,83.054,83.009,21.24903861]
[1772459448679,20.71041512,83.062,83.011,20.58155255]
[1772459449389,20.71041512,83.062,83.02,10.843]
[1772459449779,20.71041512,83.099,83.011,20.58155255]
[1772459450188,20.71041512,83.099,83.0,7.73637385]
[1772459450189,10.836,83.074,83.028,20.58155255]
[1772459451387,10.837,83.067,83.028,20.58155255]
[1772459451583,20.71041512,83.082,83.029,20.58155255]
[1772459452084,10.74853782,83.099,83.029,20.58155255]
[1772459452085,10.836,83.079,83.029,20.58155255]
[1772459452588,20.71041512,83.096,83.029,31.42355255]
[1772459452886,20.71041512,83.095,83.029,31.42355255]
[1772459453087,20.71041512,83.094,83.029,31.42355255]
[1772459453288,20.71041512,83.093,83.029,31.42355255]
[1772459453484,20.71041512,83.092,83.029,31.42355255]
[1772459453685,20.71041512,83.077,83.029,20.58155255]
[1772459453987,20.71041512,83.077,83.011,20.58155255]
[1772459454692,10.838,83.058,83.011,20.58155255]
[1772459454892,20.71041512,83.075,83.011,20.58155255]
[1772459455086,20.71041512,83.074,83.011,20.58155255]
[1772459455292,10.838,83.059,83.011,20.58155255]
[1772459455794,10.841,83.037,82.99,10.847]
[1772459455994,20.71041512,83.059,82.971,20.58155255]
[1772459456190,20.71041512,83.058,82.971,20.58155255]
[1772459456384,20.71041512,83.058,82.997,10.846]
[1772459456581,20.71041512,83.058,82.993,20.58155255]
[1772459456996,10.841,83.039,82.993,20.58155255]
[1772459457690,20.71041512,83.056,82.993,20.58155255]
[1772459457892,20.71041512,83.055,82.993,20.58155255]
[1772459458693,20.71041512,83.071,82.994,20.58155255]
[1772459459083,10.72192625,83.079,82.994,20.58155255]
[1772459459084,20.71041512,83.051,82.994,20.58155255]
[1772459459288,20.71041512,83.078,82.994,20.58155255]
[1772459459787,10.84,83.046,83.002,10.846]
[1772459459988,10.84,83.046,83.003,20.58155255]
[1772459460586,10.841,83.036,82.986,20.58155255]
[1772459460794,20.71041512,83.046,82.986,20.58155255]
[1772459460994,20.71041512,83.046,82.961,2.09649921]
[1772459460995,20.71041512,83.079,83.019,10.843]
[1772459461196,20.71041512,83.078,83.019,20.58155255]
[1772459461592,10.836,83.076,83.028,10.842]
[1772459461892,20.71041512,83.095,83.028,20.58155255]
[1772459462604,20.71041512,83.095,83.029,20.58155255]
[1772459464197,10.835,83.08,83.032,20.58155255]
[1772459464499,20.71041512,83.079,83.014,20.58155255]
[1772459464998,20.71041512,83.079,82.99,7.73637385]
[1772459464999,10.71959614,83.092,83.029,20.58155255]
[1772459465199,20.71041512,83.096,83.029,20.58155255]
[1772459465592,10.834,83.088,83.036,10.841]
[1772459466193,20.71041512,83.083,83.029,20.58155255]
[1772459467699,20.71041512,83.079,83.011,20.58155255]
[1772459467905,20.71041512,83.078,83.011,20.58155255]
[1772459468201,7.73637385,83.06,82.994,20.58155255]
[1772459468405,20.71041512,83.059,82.994,20.58155255]
[1772459468605,20.71041512,83.058,82.994,20.58155255]
[1772459469208,10.841,83.036,82.994,20.58155255]
[1772459469706,10.841,83.036,82.942,22.44395153]
[1772459469707,20.71041512,83.043,82.976,20.58155255]
[1772459469906,7.73637385,83.06,82.984,10.848]
[1772459469907,20.71041512,83.04,82.984,10.848]
[1772459470407,10.841,83.036,82.984,10.848]
[1772459470608,20.71041512,83.035,82.976,31.43055255]
[1772459470805,20.71041512,83.035,82.977,20.58155255]
[1772459472408,20.71041512,83.035,82.987,10.847]
[1772459472608,20.71041512,83.051,82.988,20.58155255]
[1772459472803,10.839,83.05,82.988,20.58155255]
[1772459473008,20.71041512,83.079,82.988,20.58155255]
[1772459473198,20.71041512,83.078,82.988,20.58155255]
[1772459473805,19.65736023,83.063,83.003,18.98829507]
[1772459474609,19.65736023,83.063,83.007,10.845]
[1772459476102,19.65736023,83.059,82.985,18.98829507]
[1772459476612,36.08,83.078,82.95,7.73637385]
[1772459476613,19.65736023,83.039,82.952,18.98829507]
[1772459476911,19.65736023,83.059,82.979,18.98829507]
[1772459478407,19.50633137,83.043,82.979,18.98829507]
[1772459478813,19.50633137,83.059,82.979,18.98829507]
[1772459479112,19.50633137,83.059,83.003,19.08557044]
[1772459480214,19.50633137,83.059,83.023,10.843]
[1772459480912,30.34233137,83.075,83.03,10.842]
[1772459481109,10.74549981,83.074,83.03,10.842]
[1772459481820,19.50633137,83.075,83.03,10.842]
[1772459482114,19.50633137,83.073,83.001,19.08557044]
[1772459482313,19.50633137,83.071,83.001,19.08557044]
[1772459482612,10.838,83.059,83.016,10.844]
[1772459483009,19.50633137,83.066,83.016,10.844]
[1772459483212,7.73637385,83.08,83.016,10.844]
[1772459483213,19.50633137,83.063,83.016,10.844]
[1772459484215,19.50633137,83.059,82.981,19.08557044]
[1772459484411,19.50633137,83.057,82.981,19.08557044]
[1772459484611,19.50633137,83.055,82.981,19.08557044]
[1772459484812,19.50633137,83.037,82.99,10.847]
[1772459485011,19.50633137,83.037,82.981,19.08557044]
[1772459485904,10.842,83.028,82.981,19.08557044]
[1772459487108,10.843,83.022,82.97,10.85]
[1772459487311,19.50633137,83.022,82.965,19.08557044]
[1772459488305,30.25183118,83.038,82.965,19.08557044]
[1772459488508,19.50633137,83.029,82.965,19.08557044]
[1772459489216,19.50633137,83.027,82.934,19.08557044]
[1772459489413,19.50633137,83.019,82.934,19.08557044]
[1772459489608,10.74549981,83.025,82.934,19.08557044]
[1772459489810,10.74549981,83.024,82.951,19.08557044]
[1772459490007,10.74549981,83.023,82.951,19.08557044]
[1772459490211,462.65284081,83.027,82.973,19.08557044]
[1772459490212,10.74549981,83.022,82.973,19.08557044]
[1772459490407,10.74549981,83.021,82.973,19.08557044]
[1772459490612,10.74549981,83.02,82.973,19.08557044]
[1772459490811,462.65284081,83.027,82.973,19.08557044]
[1772459491416,19.50633137,83.051,82.973,19.08557044]
[1772459491617,19.50633137,83.051,82.993,19.08557044]
[1772459493416,10.76298245,83.052,83.016,10.844]
[1772459493616,19.50633137,83.065,83.016,10.844]
[1772459493810,19.50633137,83.064,83.016,10.844]
[1772459494115,19.50633137,83.055,83.008,10.845]
[1772459494718,10.84,83.044,82.998,10.846]
[1772459495119,10.76365162,83.054,82.992,19.08557044]
[1772459495319,19.50633137,83.053,83.012,10.844]
[1772459495914,19.50633137,83.053,82.992,19.08557044]
[1772459497124,10.839,83.062,82.992,19.08557044]
[1772459497326,19.50633137,83.061,82.992,19.08557044]
[1772459498120,19.50633137,83.059,82.992,19.08557044]
[1772459498319,30.34633137,83.052,83.005,10.846]
[1772459498618,10.76343276,83.051,82.992,19.08557044]
[1772459498821,19.50633137,83.05,82.992,19.08557044]
[1772459500536,19.50633137,83.048,82.976,19.08557044]
[1772459500835,19.50633137,83.047,82.976,19.08557044]
[1772459501132,30.34733137,83.044,82.976,19.08557044]
[1772459501440,10.76811079,83.043,82.976,19.08557044]
[1772459501737,10.76811079,83.043,83.001,10.847]
[1772459501930,10.76811079,83.043,82.99,19.08557044]
[1772459502134,19.50633137,83.044,82.99,19.08557044]
[1772459502332,19.50633137,83.044,83.0,10.847]
[1772459503236,10.842,83.038,83.0,10.847]
[1772459503528,19.50633137,83.044,83.0,10.847]
[1772459503737,19.50633137,83.044,82.99,19.08557044]
[1772459503930,19.50633137,83.058,82.99,19.08557044]
[1772459504432,19.50633137,83.058,83.004,19.08557044]
[1772459504835,10.84,83.051,83.01,10.846]
[1772459505033,19.50633137,83.05,83.004,19.08557044]
[1772459505238,19.50633137,83.05,82.973,19.08557044]
[1772459505434,19.50633137,83.05,82.988,19.08557044]
[1772459506240,19.50633137,83.045,82.997,10.847]
[1772459507239,18.14292501,83.043,82.997,10.847]
[1772459507435,18.14292501,83.043,82.99,10.848]
[1772459508042,18.14292501,83.03,82.982,10.849]
[1772459509037,8.75395925,83.059,82.975,10.85]
[1772459509038,18.14292501,83.027,82.975,10.85]
[1772459509242,18.14292501,83.027,82.973,19.44603197]
[1772459509635,10.844,83.025,82.982,10.849]
[1772459510138,10.845,83.018,82.974,10.85]
[1772459510937,10.845,83.018,82.973,19.44603197]
[1772459511144,10.845,83.018,82.98,10.849]
[1772459511739,28.98753938,83.023,82.98,10.849]
[1772459511944,10.84461437,83.022,82.98,10.849]
[1772459512345,18.14292501,83.036,82.973,19.44603197]
[1772459512543,18.14292501,83.034,82.973,19.44603197]
[1772459512740,18.14292501,83.032,82.973,19.44603197]
[1772459512942,18.14292501,83.005,82.951,19.44603197]
[1772459513543,18.14292501,83.005,82.962,19.44603197]
[1772459513844,18.14292501,83.013,82.962,19.44603197]
[1772459514048,10.847,83.003,82.962,19.44603197]
[1772459514441,3.09932869,82.99,82.962,19.44603197]
[1772459514941,3.09932869,83.0,82.962,19.44603197]
[1772459515640,3.09932869,83.0,82.948,19.44603197]
[1772459516042,3.09932869,82.99,82.948,19.44603197]
[1772459516439,18.14292501,82.99,82.948,19.44603197]
[1772459517445,10.849,82.986,82.948,19.44603197]
[1772459517646,18.14292501,82.985,82.938,10.855]
[1772459517849,18.14292501,82.985,82.938,30.30103197]
[1772459518147,18.14292501,82.985,82.94,10.855]
[1772459518848,18.14292501,83.002,82.944,19.44603197]
[1772459519242,7.74987127,83.01,82.915,319.2036681]
[1772459519243,18.14292501,82.984,82.927,19.44603197]
[1772459519549,18.14292501,82.984,82.932,19.44603197]
[1772459519751,36.18,83.022,82.892,22.46425338]
[1772459519752,10.846,83.007,82.962,10.852]
[1772459519950,18.14292501,83.006,82.957,19.44603197]
[1772459520345,10.846,83.005,82.957,19.44603197]
[1772459520553,18.14292501,82.999,82.921,19.44603197]
[1772459520746,18.14292501,83.014,82.923,19.44603197]
[1772459521047,18.14292501,83.029,82.97,19.44603197]
[1772459521352,21.676,83.072,82.918,168.903]
[1772459521353,18.14292501,83.019,82.926,19.44603197]
[1772459521543,10.846,83.009,82.961,10.852]
[1772459521948,18.14292501,83.017,82.953,19.44603197]
[1772459522150,18.14292501,83.016,82.957,19.44603197]
[1772459524545,18.14292501,83.016,82.922,19.44603197]
[1772459524751,18.14292501,82.999,82.922,19.44603197]
[1772459526451,18.14292501,82.999,82.935,10.855]
[1772459526651,18.14292501,82.999,82.922,19.44603197]
[1772459527254,10.851,82.97,82.926,10.857]
[1772459528049,18.14292501,82.965,82.917,10.858]
[1772459528956,18.14292501,82.979,82.918,19.44603197]
[1772459529650,18.14292501,82.989,82.918,19.44603197]
[1772459530556,10.51422318,82.998,82.918,19.44603197]
[1772459530758,18.14292501,83.005,82.918,19.44603197]
[1772459530950,18.14292501,82.996,82.947,10.854]
[1772459532357,18.14292501,83.009,82.956,10.853]
[1772459532557,18.14292501,83.009,82.949,19.44603197]
[1772459532852,18.14292501,83.009,82.947,10.854]
[1772459533053,18.14292501,83.009,82.933,19.44603197]
[1772459533651,18.14292501,83.009,82.956,10.853]
[1772459533850,18.14292501,83.009,82.957,17.92966191]
[1772459534251,10.848,82.992,82.949,10.853]
[1772459534652,18.72884954,83.007,82.949,10.853]
[1772459534951,18.72884954,83.007,82.956,10.853]
[1772459535346,18.72884954,83.007,82.963,10.852]
[1772459536152,18.72884954,83.028,82.963,17.92966191]
[1772459536462,18.72884954,83.028,82.979,17.92966191]
[1772459537253,29.57184954,83.028,82.979,17.92966191]
[1772459537452,18.09633034,83.043,82.982,17.90759942]
[1772459537649,18.09633034,83.042,82.982,17.90759942]
[1772459537957,10.842,83.036,82.989,10.848]
[1772459539950,18.09633034,83.042,82.99,17.90759942]
[1772459540662,18.09633034,83.032,82.982,10.849]
[1772459541260,18.09633034,83.032,82.983,17.90759942]
[1772459541560,470.70409544,83.044,82.992,17.90759942]
[1772459542355,470.70409544,83.044,83.001,10.847]
[1772459544256,470.70409544,83.044,83.001,28.75459942]
[1772459545356,481.54509544,83.044,83.001,28.75459942]
[1772459545562,470.70409544,83.044,83.001,28.75459942]
[1772459546562,18.09633034,83.043,82.987,17.90759942]
[1772459546952,18.09633034,83.029,82.978,10.85]
[1772459547262,18.09633034,83.029,82.973,17.90759942]
[1772459548353,18.09633034,83.029,82.985,10.849]
[1772459549652,18.09633034,83.029,82.973,17.90759942]
[1772459549857,18.09633034,83.019,82.941,17.90759942]
[1772459550256,10.848,82.995,82.949,28.76159942]
[1772459550464,10.848,82.995,82.95,17.90759942]
[1772459550661,18.09633034,82.999,82.919,17.90759942]
[1772459551265,21.686,83.033,82.936,17.90759942]
[1772459551266,7.74987127,83.01,82.936,17.90759942]
[1772459551459,18.09633034,83.01,82.936,17.90759942]
[1772459551764,18.09633034,83.01,82.957,17.90759942]
[1772459552562,18.09633034,83.01,82.964,10.852]
[1772459553258,18.09633034,83.01,82.972,10.85]
[1772459554566,10.846,83.009,82.965,10.851]
[1772459554771,18.09633034,83.019,82.957,17.90759942]
[1772459555666,18.09633034,83.019,82.981,10.849]
[1772459555864,10.843,83.027,82.981,10.849]
[1772459556464,10.843,83.027,82.988,10.848]
[1772459556668,10.844,83.02,82.972,17.90759942]
[1772459556867,10.50534509,83.032,82.972,17.90759942]
[1772459557059,10.843,83.028,82.972,17.90759942]
[1772459557264,18.09633034,83.049,82.972,17.90759942]
[1772459557467,10.51015559,83.043,82.972,17.90759942]
[1772459557662,18.09633034,83.042,82.972,17.90759942]
[1772459558369,18.09633034,83.042,82.999,10.847]